fUSD/lending_fUSD_20260308
["ID","MTS","AMOUNT","RATE_DAILY","PERIOD"]
[407983401,1772967041890,-772.0,0.00019958,2]
[407983402,1772967041899,-150.0,0.00019958,2]
[407983403,1772967041908,-150.0,0.00019958,2]
[407983404,1772967041918,-171.0,0.00019958,2]
[407983405,1772967041927,-500.0,0.00019973,2]
[407983406,1772967041936,-500.0,0.00019973,2]
[407983407,1772967041945,-500.0,0.00019973,2]
[407983408,1772967041954,-500.0,0.00019973,2]
[407983409,1772967041963,-500.0,0.00019973,2]
[407983410,1772967041971,-500.0,0.00019973,2]
[407983411,1772967041980,-500.0,0.00019973,2]
[407983412,1772967041989,-500.0,0.00019973,2]
[407983413,1772967041998,-530.88059829,0.00019973,2]
[407983414,1772967042008,-500.0,0.00019973,2]
[407983415,1772967042017,-500.0,0.00019973,2]
[407983416,1772967042026,-500.0,0.00019973,2]
[407983417,1772967042035,-606.73227021,0.0001998,2]
[407983418,1772967042044,-151.0,0.00019987,2]
[407983419,1772967042054,-6447.1415371,0.0001999,2]
[407983420,1772967042067,-543239.078428,0.0001999,2]
[407983421,1772967042076,-606.73227021,0.0001999,2]
[407983422,1772967042086,-151.0,0.00019997,2]
[407983423,1772967042095,-300.0,0.00019999,2]
[407983424,1772967042105,-300.0,0.00019999,2]
[407983425,1772967042115,-666.0,0.00019999,2]
[407983426,1772967042124,-150.0,0.00019999,2]
[407983427,1772967042134,-215.40583698,0.00019999,2]
[407983428,1772967042142,-4870852.39635886,0.0002,2]
[407983429,1772967042163,-6543.9,0.0002,2]
[407983430,1772967042277,-1657040.53103331,0.0002,2]
[407983431,1772967042287,-463719.47519657,0.0002,2]
[407983432,1772967042309,-8804.70489109,0.0002,2]
[407983433,1772967042321,-8947.21879473,0.0002,2]
[407983434,1772967042332,-8943.78386462,0.0002,2]
[407983435,1772967042343,-9077.54866152,0.0002,2]
[407983436,1772967042362,-3268.26365647,0.0002,2]
[407983437,1772967042374,-491.42396994,0.0002,2]
[407983441,1772967043246,-145222.63404427,0.0002,2]
[407983461,1772967046024,-11803.59851672,0.0002,2]
[407983462,1772967046218,-530.914998,0.0002,2]
[407983463,1772967046230,-47288.51588125,0.0002,2]
[407983464,1772967046241,-2004.42007346,0.0002,2]
[407983465,1772967046252,-11825.8398315,0.0002,2]
[407983466,1772967046264,-1291.534365,0.0002,2]
[407983467,1772967046277,-330.0,0.0002,2]
[407983468,1772967046293,-625.63893582,0.0002,2]
[407983469,1772967046303,-18779.46148392,0.0002,2]
[407983474,1772967325405,-264.73530605,0.00014696,2]
[407983475,1772967325431,-1000.0,0.00014716,2]
[407983476,1772967325458,-600.0,0.00014764,2]
[407983477,1772967325485,-1200.0,0.00014772,2]
[407983478,1772967325511,-217.0,0.00014772,2]
[407983479,1772967325536,-300.0,0.00014772,2]
[407983480,1772967325561,-31418.26469395,0.00014773,2]
[407983481,1772967367864,5000.01,7.945e-05,2]
[407983482,1772967367885,5000.01,7.945e-05,2]
[407983483,1772967367910,5000.01,7.945e-05,2]
[407983484,1772967367931,25.337273,7.945e-05,2]
[407983485,1772967375707,-209.117595,0.00014599,2]
[407983486,1772967375735,-300.0,0.00014672,2]
[407983487,1772967375762,-501.37517415,0.00014673,2]
[407983488,1772967375793,-98089.50723085,0.00014673,2]
[407983489,1772967435849,500.0,8e-05,2]
[407983490,1772967436599,500.0,8e-05,2]
[407983491,1772967437016,500.0,8e-05,2]
[407983492,1772967437205,515.04698736,8e-05,2]
[407983493,1772967437498,500.0,8e-05,2]
[407983494,1772967438067,614.52527515,0.00011272,2]
[407983495,1772967438094,1534.58418408,0.00011272,2]
[407983496,1772967440545,335.85355341,8e-05,2]
[407983497,1772967440567,164.14644659,8e-05,2]
[407983498,1772967441030,500.0,8e-05,2]
[407983499,1772967441504,545.98397172,8e-05,2]
[407983511,1772967743883,1968.96155128,0.0001,2]
[407983512,1772967752394,1820.91803041,9.5e-05,3]
[407983513,1772967752418,5000.01,9.5e-05,3]
[407983514,1772967752439,1459.85129338,9.5e-05,3]
[407983517,1772967942785,-152.828629,0.000133,2]
[407983518,1772967942809,-222.31686926,0.00013624,2]
[407983519,1772967942835,-150.0,0.00013647,2]
[407983520,1772967942859,-217.0,0.00013723,2]
[407983521,1772967942884,-300.0,0.00013723,2]
[407983522,1772967943105,-300.0,0.00013723,2]
[407983523,1772967943131,-1200.0,0.00013723,2]
[407983524,1772967943159,-16321.38,0.00013724,2]
[407983525,1772967943185,-200.0,0.00013731,2]
[407983526,1772967943210,-600.0,0.00013771,2]
[407983527,1772967943233,-336.47450174,0.000138,2]
[407983528,1772967955761,-163.52549826,0.000138,2]
[407983529,1772967955785,-500.0,0.00013817,2]
[407983530,1772967955810,-600.0,0.00013828,2]
[407983531,1772967955834,-356.600136,0.00013843,7]
[407983532,1772967955862,-150.0,0.00013847,2]
[407983533,1772967955885,-200.0,0.00013911,2]
[407983534,1772967955910,-155.59,0.00014,2]
[407983535,1772967955934,-300.0,0.00014,2]
[407983536,1772967955957,-150.0,0.00014,14]
[407983537,1772967955982,-265.0,0.00014,2]
[407983538,1772967977209,-500.0,0.000138,2]
[407983539,1772967977234,-500.66375409,0.000138,2]
[407983540,1772967977259,-331.86630007,0.000138,2]
[407983541,1772967977282,-501.61890659,0.000138,2]
[407983542,1772967977306,-11387.78,0.00014001,2]
[407983543,1772967987057,154.49,0.0001104,2]
[407983553,1772968236944,-465.9411542,0.00011507,2]
[407983554,1772968236956,-1167.1188458,0.00011507,2]
[407983555,1772968236967,-154.49,0.00012421,2]
[407983556,1772968236978,-252.0,0.00012421,2]
[407983557,1772968236989,-222.31686925,0.00013526,2]
[407983558,1772968237001,-573.47428495,0.00013625,2]
[407983559,1772968237012,-2657.47571505,0.00013625,2]
[407983560,1772968237021,-1604.07,0.00013626,2]
[407983561,1772968237030,-300.0,0.00013662,2]
[407983562,1772968237039,-1200.0,0.00013662,2]
[407983563,1772968237048,-300.0,0.00013662,2]
[407983564,1772968237057,-300.0,0.00013662,2]
[407983565,1772968237066,-250.0,0.00013663,2]
[407983566,1772968237075,-5000.0,0.00013663,2]
[407983567,1772968237084,-250.0,0.00013663,2]
[407983568,1772968237092,-250.0,0.00013663,2]
[407983569,1772968237101,-500.0,0.00013663,2]
[407983570,1772968237110,-5000.0,0.00013663,2]
[407983571,1772968237119,-272.0,0.00013663,2]
[407983572,1772968237128,-300.0,0.00013663,2]
[407983573,1772968237137,-29383.1,0.00013664,2]
[407983574,1772968237146,-500.0,0.000137,2]
[407983575,1772968237155,-500.0,0.000137,2]
[407983576,1772968237163,-500.0,0.000137,2]
[407983577,1772968237172,-500.0,0.000137,2]
[407983578,1772968237181,-5533.0,0.000137,3]
[407983579,1772968237189,-425.24124255,0.00013767,2]
[407983580,1772968237198,-154.49,0.00013801,2]
[407983581,1772968237207,-600.0,0.00013871,2]
[407983582,1772968237215,-5533.0,0.00014,5]
[407983583,1772968237224,-1000.0,0.00014248,2]
[407983584,1772968237233,-155.59,0.00014371,2]
[407983585,1772968237242,-150.0,0.00014389,2]
[407983586,1772968237253,-10372.41348578,0.0001439,2]
[407983587,1772968237262,-999.99,0.0001439,2]
[407983588,1772968237271,-9999.99,0.0001439,2]
[407983589,1772968237280,-150.99,0.00014473,2]
[407983590,1772968237289,-9999.99,0.00014473,2]
[407983591,1772968237298,-3804.34,0.00014473,2]
[407983592,1772968237306,-150.99,0.00014473,2]
[407983593,1772968237315,-2471.28,0.00014473,2]
[407983594,1772968237324,-1615.37,0.00014473,2]
[407983595,1772968237332,-5175.78473123,0.00014473,2]
[407983596,1772968237341,-160.79,0.00014571,2]
[407983597,1772968237350,-2230.6078,0.00014572,2]
[407983598,1772968237359,-273.08896644,0.00014572,2]
[407983599,1772968237368,-174.33377655,0.00014572,2]
[407983600,1772968237377,-744.04502082,0.00014572,2]
[407983601,1772968237386,-500.0,0.00014572,2]
[407983602,1772968237394,-150.99545794,0.00014572,2]
[407983603,1772968237403,-744.04502082,0.00014572,2]
[407983604,1772968237412,-566.34488123,0.00014572,2]
[407983605,1772968237421,-744.04502082,0.00014572,2]
[407983606,1772968237429,-744.04502082,0.00014572,2]
[407983607,1772968237438,-744.04502082,0.00014572,2]
[407983608,1772968237447,-744.04502082,0.00014572,2]
[407983609,1772968237457,-744.04502082,0.00014572,2]
[407983610,1772968237466,-744.04502082,0.00014572,2]
[407983611,1772968237475,-744.04502082,0.00014572,2]
[407983612,1772968237484,-744.04502082,0.00014572,2]
[407983613,1772968237493,-744.04502082,0.00014572,2]
[407983614,1772968237502,-744.04502082,0.00014572,2]
[407983615,1772968237511,-744.04502082,0.00014572,2]
[407983616,1772968237521,-744.04502082,0.00014572,2]
[407983617,1772968237530,-744.04502082,0.00014572,2]
[407983618,1772968237539,-744.04502082,0.00014572,2]
[407983619,1772968237547,-744.04502082,0.00014572,2]
[407983620,1772968237556,-744.04502082,0.00014572,2]
[407983621,1772968237565,-744.04502082,0.00014572,2]
[407983622,1772968237574,-744.04502082,0.00014572,2]
[407983623,1772968237583,-744.04502082,0.00014572,2]
[407983624,1772968237591,-744.04502082,0.00014572,2]
[407983625,1772968237600,-744.04502082,0.00014572,2]
[407983626,1772968237610,-744.04502082,0.00014572,2]
[407983628,1772968237620,-744.04502082,0.00014572,2]
[407983630,1772968237629,-744.04502082,0.00014572,2]
[407983632,1772968237638,-744.04502082,0.00014572,2]
[407983634,1772968237648,-744.04502082,0.00014572,2]
[407983636,1772968237657,-744.04502082,0.00014572,2]
[407983637,1772968237669,-744.04502082,0.00014572,2]
[407983639,1772968237679,-744.04502082,0.00014572,2]
[407983642,1772968237690,-744.04502082,0.00014572,2]
[407983644,1772968237700,-744.04502082,0.00014572,2]
[407983646,1772968237711,-744.04502082,0.00014572,2]
[407983648,1772968237720,-744.04502082,0.00014572,2]
[407983650,1772968237729,-744.04502082,0.00014572,2]
[407983652,1772968237740,-744.04502082,0.00014572,2]
[407983654,1772968237749,-744.04502082,0.00014572,2]
[407983656,1772968237758,-744.04502082,0.00014572,2]
[407983657,1772968237768,-744.04502082,0.00014572,2]
[407983659,1772968237778,-744.04502082,0.00014572,2]
[407983661,1772968237787,-744.04502082,0.00014572,2]
[407983663,1772968237796,-744.04502082,0.00014572,2]
[407983665,1772968237805,-744.04502082,0.00014572,2]
[407983667,1772968237814,-744.04502082,0.00014572,2]
[407983669,1772968237823,-744.04502082,0.00014572,2]
[407983671,1772968237832,-744.04502082,0.00014572,2]
[407983673,1772968237841,-744.04502082,0.00014572,2]
[407983675,1772968237850,-744.04502082,0.00014572,2]
[407983677,1772968237860,-744.04502082,0.00014572,2]
[407983679,1772968237869,-744.04502082,0.00014572,2]
[407983681,1772968237878,-744.04502082,0.00014572,2]
[407983683,1772968237887,-744.04502082,0.00014572,2]
[407983685,1772968237896,-744.04502082,0.00014572,2]
[407983687,1772968237905,-744.04502082,0.00014572,2]
[407983689,1772968237914,-744.04502082,0.00014572,2]
[407983691,1772968237923,-744.04502082,0.00014572,2]
[407983693,1772968237932,-744.04502082,0.00014572,2]
[407983695,1772968237940,-744.04502082,0.00014572,2]
[407983697,1772968237950,-744.04502082,0.00014572,2]
[407983699,1772968237959,-744.04502082,0.00014572,2]
[407983701,1772968237968,-744.04502082,0.00014572,2]
[407983702,1772968237978,-744.04502082,0.00014572,2]
[407983703,1772968237987,-744.04502082,0.00014572,2]
[407983704,1772968237996,-744.04502082,0.00014572,2]
[407983705,1772968238005,-744.04502082,0.00014572,2]
[407983706,1772968238015,-3084.50926923,0.00014572,2]
[407983707,1772968238024,-10525.08335997,0.00014573,2]
[407983708,1772968238034,-2322.8855,0.00014573,2]
[407983709,1772968238043,-98354.1776,0.00014573,2]
[407983710,1772968238052,-174.99378972,0.00014573,2]
[407983711,1772968238065,-6576.23751028,0.00014573,2]
[407983712,1772968238074,-1621.153,0.00014573,2]
[407983713,1772968238083,-303.47017163,0.00014573,2]
[407983714,1772968238093,-197.9698367,0.00014573,2]
[407983715,1772968238103,-204.11323615,0.00014573,2]
[407983716,1772968238112,-1057.31959692,0.00014644,2]
[407983717,1772968238124,-266.34823268,0.00014644,2]
[407983718,1772968238133,-1883.16,0.00014659,2]
[407983719,1772968238142,-404.48818014,0.00014663,2]
[407983721,1772968238151,-500.0,0.00014664,2]
[407983723,1772968238160,-500.0,0.00014664,2]
[407983724,1772968238169,-151.0,0.00014664,2]
[407983725,1772968238178,-500.0,0.00014664,2]
[407983726,1772968238187,-200.0,0.00014664,2]
[407983727,1772968238196,-151.0,0.00014664,2]
[407983728,1772968238205,-500.0,0.00014664,2]
[407983730,1772968238214,-151.0,0.00014664,2]
[407983731,1772968238223,-500.0,0.00014664,2]
[407983733,1772968238231,-151.0,0.00014664,2]
[407983734,1772968238240,-500.0,0.00014664,2]
[407983735,1772968238249,-151.0,0.00014664,2]
[407983736,1772968238258,-500.0,0.00014664,2]
[407983737,1772968238267,-151.0,0.00014664,2]
[407983739,1772968238276,-151.0,0.00014664,2]
[407983740,1772968238285,-151.0,0.00014664,2]
[407983742,1772968238294,-151.0,0.00014664,2]
[407983744,1772968238303,-151.0,0.00014664,2]
[407983746,1772968238313,-151.0,0.00014664,2]
[407983747,1772968238322,-500.0,0.00014664,2]
[407983749,1772968238333,-500.0,0.00014664,2]
[407983751,1772968238342,-500.0,0.00014664,2]
[407983752,1772968238351,-500.0,0.00014664,2]
[407983753,1772968238361,-500.0,0.00014664,2]
[407983754,1772968238370,-500.0,0.00014664,2]
[407983755,1772968238379,-500.0,0.00014664,2]
[407983756,1772968238387,-500.0,0.00014664,2]
[407983757,1772968238396,-500.0,0.00014664,2]
[407983758,1772968238406,-500.0,0.00014664,2]
[407983759,1772968238415,-240.83222841,0.00014664,2]
[407983760,1772968238425,-151.0,0.0001467,2]
[407983761,1772968238434,-151.0,0.0001467,2]
[407983762,1772968238443,-628.57567368,0.00014672,2]
[407983763,1772968238451,-338.97073746,0.00014672,2]
[407983764,1772968238460,-500.0,0.00014672,2]
[407983765,1772968238469,-500.0,0.00014672,2]
[407983766,1772968238479,-500.0,0.00014672,2]
[407983767,1772968238488,-485.98710433,0.00014672,2]
[407983768,1772968238497,-304.71239442,0.00014672,2]
[407983769,1772968238506,-500.0,0.00014672,2]
[407983770,1772968238516,-500.0,0.00014672,2]
[407983771,1772968238525,-500.0,0.00014672,2]
[407983772,1772968238533,-500.0,0.00014672,2]
[407983773,1772968238542,-500.0,0.00014672,2]
[407983774,1772968238552,-500.0,0.00014672,2]
[407983775,1772968238562,-500.0,0.00014672,2]
[407983776,1772968238573,-502.45046562,0.00014672,2]
[407983777,1772968238582,-500.0,0.00014672,2]
[407983778,1772968238591,-500.0,0.00014672,2]
[407983779,1772968238600,-500.0,0.00014672,2]
[407983780,1772968238609,-500.0,0.00014672,2]
[407983781,1772968238619,-500.0,0.00014672,2]
[407983782,1772968238629,-500.0,0.00014672,2]
[407983783,1772968238638,-500.0,0.00014672,2]
[407983785,1772968238648,-500.0,0.00014672,2]
[407983787,1772968238658,-500.0,0.00014672,2]
[407983789,1772968238670,-500.0,0.00014672,2]
[407983791,1772968238679,-500.0,0.00014672,2]
[407983792,1772968238688,-500.0,0.00014672,2]
[407983794,1772968238697,-500.0,0.00014672,2]
[407983796,1772968238707,-500.0,0.00014672,2]
[407983797,1772968238717,-500.0,0.00014672,2]
[407983798,1772968238726,-500.0,0.00014672,2]
[407983799,1772968238736,-500.0,0.00014672,2]
[407983800,1772968238747,-500.0,0.00014672,2]
[407983801,1772968238756,-500.0,0.00014672,2]
[407983802,1772968238766,-500.0,0.00014672,2]
[407983803,1772968238775,-500.0,0.00014672,2]
[407983804,1772968238784,-500.0,0.00014672,2]
[407983805,1772968238794,-500.0,0.00014672,2]
[407983806,1772968238802,-500.0,0.00014672,2]
[407983807,1772968238812,-500.0,0.00014672,2]
[407983808,1772968238821,-500.0,0.00014672,2]
[407983809,1772968238830,-500.0,0.00014672,2]
[407983810,1772968238840,-500.0,0.00014672,2]
[407983811,1772968238849,-4.94961368,0.00014672,2]
[407983812,1772968238861,-495.05038632,0.00014672,2]
[407983813,1772968238870,-500.0,0.00014672,2]
[407983814,1772968238879,-500.0,0.00014672,2]
[407983815,1772968238888,-500.0,0.00014672,2]
[407983816,1772968238897,-500.0,0.00014672,2]
[407983817,1772968238906,-500.0,0.00014672,2]
[407983818,1772968238915,-500.0,0.00014672,2]
[407983819,1772968238927,-500.0,0.00014672,2]
[407983820,1772968238937,-500.0,0.00014672,2]
[407983821,1772968238948,-500.0,0.00014672,2]
[407983822,1772968238957,-605.55782896,0.00014672,2]
[407983823,1772968238969,-500.0,0.00014672,2]
[407983824,1772968238979,-500.0,0.00014672,2]
[407983825,1772968238990,-500.0,0.00014672,2]
[407983826,1772968238999,-500.0,0.00014672,2]
[407983827,1772968239010,-500.0,0.00014672,2]
[407983828,1772968239020,-500.0,0.00014672,2]
[407983829,1772968239030,-500.0,0.00014672,2]
[407983830,1772968239040,-500.0,0.00014672,2]
[407983831,1772968239050,-500.0,0.00014672,2]
[407983832,1772968239062,-500.0,0.00014672,2]
[407983833,1772968239071,-500.0,0.00014672,2]
[407983834,1772968239080,-500.0,0.00014672,2]
[407983835,1772968239089,-500.0,0.00014672,2]
[407983836,1772968239098,-500.0,0.00014672,2]
[407983837,1772968239108,-500.0,0.00014672,2]
[407983838,1772968239117,-500.0,0.00014672,2]
[407983839,1772968239126,-500.0,0.00014672,2]
[407983840,1772968239136,-505.32416437,0.00014672,2]
[407983841,1772968239145,-500.0,0.00014673,2]
[407983842,1772968239154,-500.0,0.00014673,2]
[407983843,1772968239164,-500.0,0.00014673,2]
[407983844,1772968239174,-500.0,0.00014673,2]
[407983845,1772968239183,-500.0,0.00014673,2]
[407983846,1772968239192,-500.0,0.00014673,2]
[407983847,1772968239202,-500.0,0.00014673,2]
[407983848,1772968239213,-530.88059829,0.00014673,2]
[407983849,1772968239222,-500.0,0.00014673,2]
[407983850,1772968239231,-500.0,0.00014673,2]
[407983851,1772968239241,-56931.24315452,0.00014673,2]
[407983852,1772968239283,-606.32240396,0.00014673,2]
[407983853,1772968239302,-334.0289541,0.00014673,2]
[407983854,1772968239657,-6149.7,0.00014673,2]
[407983855,1772968239675,-15600.7402154,0.00014673,2]
[407983856,1772968239686,-3784.59443519,0.00014673,2]
[407983857,1772968239698,-363.98,0.00014673,2]
[407983858,1772968239711,-659.12266787,0.00014673,2]
[407983859,1772968239722,-267.17255998,0.00014673,2]
[407983860,1772968239738,-5612.4233874,0.00014673,2]
[407983861,1772968239752,-1352.61621588,0.00014673,2]
[407983862,1772968239763,-3003.72678809,0.00014673,2]
[407983863,1772968239774,-1228.70672826,0.00014673,2]
[407983864,1772968239785,-4585.33232451,0.00014673,2]
[407983865,1772968239796,-4836.75392696,0.00014673,2]
[407983866,1772968239807,-14161.19775467,0.00014673,2]
[407983867,1772968239819,-19133.84740202,0.00014673,2]
[407983868,1772968239831,-12086.35032955,0.00014673,2]
[407983869,1772968239842,-2251212.63352079,0.00014673,2]
[407983870,1772968239852,-174.36681551,0.00014673,2]
[407983871,1772968239862,-1839.44859132,0.00014678,2]
[407983872,1772968239871,-501.73177384,0.00014726,3]
[407983873,1772968239882,-155.59,0.00014743,2]
[407983874,1772968239892,-1505.38810605,0.00014773,2]
[407983875,1772968239902,-500.0,0.00014796,2]
[407983876,1772968239914,-355.99,0.000148,2]
[407983877,1772968239925,-787.19,0.00014853,2]
[407983878,1772968239935,-500.0,0.0001491,2]
[407983879,1772968239946,-500.0,0.0001491,2]
[407983880,1772968239955,-500.0,0.0001491,2]
[407983881,1772968239965,-500.0,0.0001491,2]
[407983882,1772968239975,-500.0,0.0001491,2]
[407983883,1772968239984,-500.0,0.00014914,2]
[407983884,1772968239994,-500.0,0.00014914,2]
[407983885,1772968240003,-500.0,0.00014914,2]
[407983886,1772968240013,-500.0,0.00014914,2]
[407983887,1772968240022,-500.0,0.00014914,2]
[407983888,1772968240032,-500.0,0.00014914,2]
[407983889,1772968240041,-500.0,0.00014914,2]
[407983890,1772968240051,-500.0,0.00014914,2]
[407983891,1772968240060,-500.0,0.00014914,2]
[407983892,1772968240069,-500.0,0.00014914,2]
[407983893,1772968240079,-500.0,0.00014914,2]
[407983894,1772968240088,-500.0,0.00014914,2]
[407983895,1772968240097,-500.0,0.00014914,2]
[407983896,1772968240106,-500.0,0.00014914,2]
[407983897,1772968240115,-500.0,0.00014914,2]
[407983898,1772968240124,-500.0,0.00014914,2]
[407983899,1772968240133,-500.0,0.00014914,2]
[407983900,1772968240143,-500.0,0.00014914,2]
[407983901,1772968240152,-500.0,0.00014914,2]
[407983902,1772968240161,-500.0,0.00014914,2]
[407983903,1772968240172,-500.0,0.00014914,2]
[407983904,1772968240181,-500.0,0.00014914,2]
[407983905,1772968240191,-500.0,0.00014914,2]
[407983906,1772968240200,-500.0,0.00014914,2]
[407983907,1772968240209,-500.0,0.00014914,2]
[407983908,1772968240218,-500.0,0.00014914,2]
[407983909,1772968240227,-500.0,0.00014914,2]
[407983910,1772968240236,-500.0,0.00014914,2]
[407983911,1772968240245,-500.0,0.00014914,2]
[407983912,1772968240255,-500.0,0.00014914,2]
[407983913,1772968240264,-500.0,0.00014914,2]
[407983914,1772968240273,-500.0,0.00014914,2]
[407983915,1772968240282,-500.0,0.00014914,2]
[407983916,1772968240291,-500.0,0.00014914,2]
[407983917,1772968240300,-500.0,0.00014914,2]
[407983918,1772968240309,-500.0,0.00014914,2]
[407983919,1772968240319,-500.0,0.00014914,2]
[407983920,1772968240328,-500.0,0.00014914,2]
[407983921,1772968240337,-500.0,0.00014914,2]
[407983922,1772968240346,-500.0,0.00014914,2]
[407983923,1772968240355,-500.0,0.00014914,2]
[407983924,1772968240364,-500.0,0.00014914,2]
[407983926,1772968240374,-500.0,0.00014914,2]
[407983928,1772968240388,-500.0,0.00014914,2]
[407983931,1772968240398,-300.0,0.00014972,2]
[407983961,1772968240586,-420.0,0.00014972,2]
[407983962,1772968240611,-498.88297581,0.00014973,2]
[407983963,1772968240620,-640.08304959,0.00014973,2]
[407983964,1772968240632,-500.0,0.00014973,2]
[407983965,1772968240642,-7921.02007202,0.00015,2]
[407983966,1772968240651,-250.0,0.00015,2]
[407983967,1772968240660,-820.88890927,0.00015,30]
[407983968,1772968240676,-500.0,0.00015,30]
[407983969,1772968240687,-500.0,0.00015,30]
[407983970,1772968240696,-500.0,0.00015,30]
[407983971,1772968240707,-500.0,0.00015,30]
[407983972,1772968240716,-500.0,0.00015,30]
[407983973,1772968240726,-500.0,0.00015,30]
[407983974,1772968240735,-500.0,0.00015,30]
[407983975,1772968240745,-500.0,0.00015,30]
[407983976,1772968240755,-505.76633109,0.00015,30]
[407983977,1772968240764,-500.0,0.00015,30]
[407983978,1772968240773,-500.0,0.00015,30]
[407983979,1772968240782,-737.76465158,0.00015,30]
[407983980,1772968240793,-500.0,0.00015,30]
[407983981,1772968240802,-500.0,0.00015,30]
[407983982,1772968240812,-636.54725451,0.00015,30]
[407983983,1772968240821,-500.0,0.00015,30]
[407983984,1772968240831,-500.0,0.00015,30]
[407983985,1772968240840,-500.0,0.00015,30]
[407983986,1772968240851,-500.0,0.00015,30]
[407983987,1772968240860,-1680.0,0.00015028,2]
[407983988,1772968240870,-5175.78473123,0.00015076,2]
[407983989,1772968240880,-155.59,0.00015114,2]
[407983990,1772968240891,-3415.54774328,0.00015165,2]
[407983991,1772968240902,-154.49,0.00015181,2]
[407983992,1772968240912,-1000.0,0.00015221,2]
[407983993,1772968240923,-1000.0,0.00015221,2]
[407983994,1772968240933,-1000.0,0.00015221,2]
[407983995,1772968240945,-1000.0,0.00015221,2]
[407983996,1772968240957,-785.42431869,0.00015221,2]
[407983997,1772968240968,-500.0,0.00015333,2]
[407983998,1772968240979,-500.0,0.00015333,2]
[407983999,1772968240988,-500.0,0.00015333,2]
[407984000,1772968240997,-500.0,0.00015333,2]
[407984001,1772968241007,-3084.5092692,0.00015333,2]
[407984002,1772968241016,-155.59,0.00015486,2]
[407984003,1772968241025,-255.0,0.00015511,2]
[407984004,1772968241035,-1000.0,0.00015521,2]
[407984005,1772968241045,-150.0,0.00015617,2]
[407984006,1772968241054,-226.931229,0.00015619,2]
[407984008,1772968241064,-218.29994,0.00015647,2]
[407984009,1772968241074,-5175.78473123,0.00015679,2]
[407984010,1772968241082,-3415.54774328,0.00015757,2]
[407984011,1772968241091,-1500.0,0.00015768,2]
[407984012,1772968241100,-1500.0,0.00015768,2]
[407984013,1772968241109,-1500.0,0.00015768,2]
[407984014,1772968241118,-1500.0,0.00015768,2]
[407984015,1772968241127,-155.59,0.00015857,2]
[407984016,1772968241136,-150.0,0.000159,2]
[407984017,1772968241144,-150.24988052,0.000159,2]
[407984018,1772968241154,-1500.0,0.00016068,2]
[407984019,1772968241164,-3084.5092692,0.00016094,2]
[407984020,1772968241172,-155.59,0.00016229,2]
[407984021,1772968241182,-5175.78473123,0.00016282,2]
[407984022,1772968241191,-719.58548492,0.00016316,2]
[407984023,1772968241200,-2000.0,0.00016316,2]
[407984024,1772968241210,-1000.0,0.00016316,2]
[407984025,1772968241221,-1149.86978781,0.00016316,2]
[407984026,1772968241231,-3415.54774328,0.00016349,2]
[407984027,1772968241243,-150.0,0.0001637,2]
[407984028,1772968241257,-587.0,0.00016408,2]
[407984029,1772968241269,-250.0,0.00016412,2]
[407984030,1772968241280,-174.36681548,0.00016415,2]
[407984031,1772968241289,-2351.0,0.0001653,2]
[407984032,1772968241298,-154.49,0.00016561,2]
[407984033,1772968241307,-155.59,0.000166,2]
[407984034,1772968241317,-433.0,0.0001672,2]
[407984035,1772968241329,-3084.5092692,0.00016855,2]